[Event "FIN-ch Seniors 2019"]
[Site "Helsinki"]
[Date "2019.06.14"]
[Round "5.2"]
[White "Leukkunen, Raimo"]
[Black "Peltola, Leo"]
[Result "1/2-1/2"]
[ECO "B92"]
[WhiteElo "1876"]
[BlackElo "1933"]
[Annotator "NA"]
[PlyCount "43"]
[EventDate "2019.06.10"]
[EventType "swiss"]
[EventCountry "FIN"]
[SourceTitle "playchess.com"]
[Source "ChessBase"]
[SourceQuality "1"]
[TimeControl "40/5400+30:1800+30"]

1. e4 {[%emt 0:00:00]} c5 {[%emt 0:02:19]} 2. Nf3 {[%emt 0:00:12]} d6 {[%emt 0:
00:07]} 3. d4 {[%emt 0:00:39]} cxd4 {[%emt 0:00:09]} 4. Nxd4 {[%emt 0:00:09]}
Nf6 {[%emt 0:00:09]} 5. Nc3 {[%emt 0:00:07]} a6 {[%emt 0:00:10]} 6. Be2 {
[%emt 0:02:41]} e5 {[%emt 0:01:27]} 7. Nb3 {[%emt 0:02:34]} Be6 {[%emt 0:01:54]
} 8. O-O {[%emt 0:01:20]} Nbd7 {[%emt 0:02:20]} 9. Be3 {[%emt 0:02:06]} Be7 {
[%emt 0:01:02]} 10. a4 {[%emt 0:06:56]} O-O {[%emt 0:02:40]} 11. h3 {[%emt 0:
02:23]} Rc8 {[%emt 0:02:57]} 12. Qd2 {[%emt 0:04:14]} Qc7 {[%emt 0:06:01]} 13.
Rfd1 {[%emt 0:07:23]} Rfe8 {[%emt 0:17:39]} 14. Rac1 {[%emt 0:02:05]} Nb6 {
[%emt 0:07:05]} 15. a5 {[%emt 0:09:47]} Nc4 {[%emt 0:01:37]} 16. Bxc4 {[%emt 0:
01:44]} Qxc4 {[%emt 0:01:43]} 17. f3 {[%emt 0:02:25]} h6 {[%emt 0:05:29]} 18.
Qf2 {[%emt 0:06:06]} Kh7 {[%emt 0:08:23]} 19. Qf1 {[%emt 0:11:36]} Qc6 {
[%emt 0:04:18]} 20. Nd5 {[%emt 0:02:51]} Bxd5 {[%emt 0:01:36]} 21. exd5 {
[%emt 0:00:20]} Qc4 {[%emt 0:04:11]} 22. Qd3+ {[%emt 0:33:22]} 1/2-1/2

[Event "FIN-ch Seniors 2019"]
[Site "Helsinki"]
[Date "2019.06.14"]
[Round "5.3"]
[White "Hurme, Harri"]
[Black "Nyrhinen, Harri"]
[Result "1-0"]
[ECO "A61"]
[WhiteElo "2122"]
[BlackElo "2001"]
[Annotator "NA"]
[PlyCount "89"]
[EventDate "2019.06.10"]
[EventType "swiss"]
[EventCountry "FIN"]
[SourceTitle "playchess.com"]
[Source "ChessBase"]
[SourceQuality "1"]
[TimeControl "40/5400+30:1800+30"]

1. d4 {[%emt 0:00:00]} Nf6 {[%emt 0:00:00]} 2. c4 {[%emt 0:00:00]} c5 {[%emt 0:
00:00]} 3. d5 {[%emt 0:00:05]} e6 {[%emt 0:00:00]} 4. Nc3 {[%emt 0:00:08]} exd5
{[%emt 0:00:03]} 5. cxd5 {[%emt 0:00:05]} d6 {[%emt 0:00:07]} 6. Nf3 {[%emt 0:
00:27]} g6 {[%emt 0:00:19]} 7. Bf4 {[%emt 0:00:07]} a6 {[%emt 0:00:25]} 8. a4 {
[%emt 0:00:14]} Bg7 {[%emt 0:00:15]} 9. h3 {[%emt 0:00:12]} O-O {[%emt 0:01:28]
} 10. e3 {[%emt 0:00:16]} Qe7 {[%emt 0:06:10]} 11. Be2 {[%emt 0:04:18]} Nbd7 {
[%emt 0:09:49]} 12. O-O {[%emt 0:01:06]} Rb8 {[%emt 0:13:29]} 13. Bh2 {[%emt 0:
06:09]} Ne8 {[%emt 0:06:12]} 14. Nd2 {[%emt 0:04:59]} f5 {[%emt 0:03:44]} 15.
a5 {[%emt 0:04:48]} b5 {[%emt 0:13:08]} 16. axb6 {[%emt 0:00:20]} Rxb6 {
[%emt 0:00:09]} 17. Nc4 {[%emt 0:00:30]} Rb4 {[%emt 0:00:29]} 18. Qc2 {[%emt 0:
07:39]} Ndf6 {[%emt 0:13:38]} 19. Rfd1 {[%emt 0:10:56]} Ne4 {[%emt 0:07:32]}
20. Na4 {[%emt 0:03:44]} Bd7 {[%emt 0:01:39]} 21. Nab6 {[%emt 0:07:52]} Bb5 {
[%emt 0:02:04]} 22. f3 {[%emt 0:01:33]} Bxc4 {[%emt 0:02:45]} 23. Nxc4 {
[%emt 0:00:30]} Ng5 {[%emt 0:01:14]} 24. Rxa6 {[%emt 0:01:10]} Nf7 {[%emt 0:05:
14]} 25. Ra3 {[%emt 0:08:34]} Nf6 {[%emt 0:02:20]} 26. Bg3 {[%emt 0:05:20]} Nd7
{[%emt 0:03:54]} 27. Ra7 {[%emt 0:05:05]} Nfe5 {[%emt 0:03:31]} 28. Bxe5 {
[%emt 0:00:59]} Bxe5 {[%emt 0:00:18]} 29. f4 {[%emt 0:01:24]} Bg7 {[%emt 0:01:
13]} 30. Rda1 {[%emt 0:01:52]} Rfb8 {[%emt 0:01:00]} 31. R1a2 {[%emt 0:05:12]}
R8b7 {[%emt 0:01:33]} 32. Rxb7 {[%emt 0:02:17]} Rxb7 {[%emt 0:00:09]} 33. Ra6 {
[%emt 0:00:48]} Bxb2 {[%emt 0:01:27]} 34. Rxd6 {[%emt 0:03:34]} Bg7 {[%emt 0:
00:35]} 35. Re6 {[%emt 0:00:55]} Qd8 {[%emt 0:00:28]} 36. Bf3 {[%emt 0:00:48]}
Ra7 {[%emt 0:00:24]} 37. Kh2 {[%emt 0:01:14]} Qb8 {[%emt 0:01:02]} 38. d6 {
[%emt 0:02:17]} Ra6 {[%emt 0:00:34]} 39. Bd5 {[%emt 0:01:01]} Kf8 {[%emt 0:00:
23]} 40. Re7 {[%emt 0:01:20]} Rxd6 {[%emt 0:00:42]} 41. Rf7+ {[%emt 0:32:58]}
Ke8 {[%emt 0:04:09]} 42. Nxd6+ {[%emt 0:00:00]} Qxd6 {[%emt 0:00:18]} 43. Qa2 {
[%emt 0:00:00]} Nb6 {[%emt 0:04:43]} 44. Rxg7 {[%emt 0:00:00]} Qxd5 {[%emt 0:
00:58]} 45. Qa7 {[%emt 0:00:00]} 1-0

[Event "FIN-ch Seniors 2019"]
[Site "Helsinki"]
[Date "2019.06.14"]
[Round "5.4"]
[White "Visti, Heikki"]
[Black "Kivipelto, Kaj"]
[Result "0-1"]
[ECO "B04"]
[WhiteElo "2000"]
[BlackElo "2130"]
[Annotator "NA"]
[PlyCount "84"]
[EventDate "2019.06.10"]
[EventType "swiss"]
[EventCountry "FIN"]
[SourceTitle "playchess.com"]
[Source "ChessBase"]
[SourceQuality "1"]
[TimeControl "40/5400+30:1800+30"]

1. e4 {[%emt 1:30:30]} Nf6 {[%emt 1:30:30]} 2. e5 {[%emt 0:00:30]} Nd5 {
[%emt 0:00:30]} 3. d4 {[%emt 0:00:30]} d6 {[%emt 0:00:30]} 4. Nf3 {[%emt 0:00:
30]} g6 {[%emt 0:00:30]} 5. Bc4 {[%emt 0:00:30]} Nb6 {[%emt 0:00:30]} 6. Bb3 {
[%emt 0:00:30]} Bg7 {[%emt 0:00:30]} 7. O-O {[%emt 0:00:30]} O-O {[%emt 0:00:
30]} 8. h3 {[%emt 0:00:30]} Nc6 {[%emt 0:00:30]} 9. exd6 {[%emt 0:00:30]} Qxd6
{[%emt 0:00:30]} 10. c3 {[%emt 0:00:30]} Bf5 {[%emt 0:00:30]} 11. Bg5 {[%emt 0:
00:30]} Na5 {[%emt 0:00:30]} 12. Qe2 {[%emt 0:00:30]} Nxb3 {[%emt 0:00:30]} 13.
axb3 {[%emt 0:00:30]} Rfe8 {[%emt 0:00:30]} 14. Bh4 {[%emt 0:00:30]} Nd5 {
[%emt 0:00:30]} 15. Bg3 {[%emt 0:00:30]} Qb6 {[%emt 0:00:30]} 16. Nbd2 {
[%emt 0:00:30]} c5 {[%emt 0:00:30]} 17. dxc5 {[%emt 0:00:30]} Qxc5 {[%emt 0:00:
30]} 18. b4 {[%emt 0:00:30]} Qc8 {[%emt 0:00:30]} 19. Nc4 {[%emt 0:00:30]} Nf6
{[%emt 0:00:30]} 20. Nd4 {[%emt 0:00:30]} Be4 {[%emt 0:00:30]} 21. Ne5 {
[%emt 0:00:30]} Bd5 {[%emt 0:00:30]} 22. Rfd1 {[%emt 0:00:30]} Ne4 {[%emt 0:00:
30]} 23. Nb5 {[%emt 0:00:30]} Nxg3 {[%emt 0:00:30]} 24. fxg3 {[%emt 0:00:30]}
Be6 {[%emt 0:00:30]} 25. Nd4 {[%emt 0:00:30]} a6 {[%emt 0:00:30]} 26. Kh2 {
[%emt 0:00:30]} Bd5 {[%emt 0:00:30]} 27. Ra5 {[%emt 0:00:30]} b5 {[%emt 0:00:
30]} 28. Nxb5 {[%emt 0:00:30]} e6 {[%emt 0:00:30]} 29. Nd4 {[%emt 0:00:30]} Qc7
{[%emt 0:00:30]} 30. Nef3 {[%emt 0:00:30]} Bb7 {[%emt 0:00:30]} 31. Rc5 {
[%emt 0:00:30]} Qb6 {[%emt 0:00:30]} 32. Ne5 {[%emt 0:00:30]} Bd5 {[%emt 0:00:
30]} 33. Nec6 {[%emt 0:00:30]} Bf8 {[%emt 0:00:30]} 34. c4 {[%emt 0:00:30]}
Bxc6 {[%emt 0:00:30]} 35. Rxc6 {[%emt 0:00:30]} Qxb4 {[%emt 0:00:30]} 36. Rd3 {
[%emt 0:00:30]} Bg7 {[%emt 0:00:30]} 37. Rc7 {[%emt 0:00:30]} Qb6 {[%emt 0:00:
30]} 38. Rc6 {[%emt 0:00:30]} Qb7 {[%emt 0:00:30]} 39. Rd6 {[%emt 0:00:30]} e5
{[%emt 0:00:30]} 40. Rb3 {[%emt 0:00:30]} Qe7 {[%emt 0:00:30]} 41. Rdb6 {
[%emt 0:30:30]} exd4 {[%emt 0:30:30]} 42. Qf3 {[%emt 0:00:30]} Qe4 {[%emt 0:00:
30]} 0-1

[Event "FIN-ch Seniors 2019"]
[Site "Helsinki"]
[Date "2019.06.14"]
[Round "5.5"]
[White "Sihvonen, Tero"]
[Black "Ruotanen, Helge"]
[Result "1/2-1/2"]
[ECO "B06"]
[WhiteElo "1983"]
[BlackElo "1920"]
[Annotator "NA"]
[PlyCount "54"]
[EventDate "2019.06.10"]
[EventType "swiss"]
[EventCountry "FIN"]
[SourceTitle "playchess.com"]
[Source "ChessBase"]
[SourceQuality "1"]
[TimeControl "40/5400+30:1800+30"]

1. f4 {[%emt 0:00:00]} g6 {[%emt 0:00:18]} 2. e4 {[%emt 0:00:10]} Bg7 {[%emt 0:
00:14]} 3. Nf3 {[%emt 0:01:15]} Nc6 {[%emt 0:00:28]} 4. Bc4 {[%emt 0:01:49]}
Na5 {[%emt 0:08:41]} 5. Be2 {[%emt 0:01:51]} c5 {[%emt 0:00:03]} 6. O-O {
[%emt 0:01:15]} c4 {[%emt 0:04:25]} 7. Nc3 {[%emt 0:01:54]} b5 {[%emt 0:00:44]}
8. d4 {[%emt 0:04:55]} b4 {[%emt 0:01:31]} 9. Na4 {[%emt 0:00:47]} Nf6 {
[%emt 0:00:14]} 10. Ng5 {[%emt 0:19:05]} h6 {[%emt 0:05:37]} 11. Nxf7 {[%emt 0:
01:49]} Kxf7 {[%emt 0:00:03]} 12. e5 {[%emt 0:00:12]} Nd5 {[%emt 0:04:23]} 13.
f5 {[%emt 0:00:21]} g5 {[%emt 0:01:53]} 14. Bh5+ {[%emt 0:02:01]} Kg8 {[%emt 0:
00:09]} 15. c3 {[%emt 0:05:19]} d6 {[%emt 0:03:53]} 16. Bf3 {[%emt 0:11:36]}
Bb7 {[%emt 0:01:58]} 17. cxb4 {[%emt 0:06:34]} Nxb4 {[%emt 0:01:23]} 18. Bxb7 {
[%emt 0:00:20]} Nxb7 {[%emt 0:00:02]} 19. Qf3 {[%emt 0:14:52]} dxe5 {[%emt 0:
00:50]} 20. Qxb7 {[%emt 0:01:27]} Rb8 {[%emt 0:00:12]} 21. Qf3 {[%emt 0:01:33]}
exd4 {[%emt 0:00:48]} 22. Qe4 {[%emt 0:04:12]} Bf6 {[%emt 0:03:39]} 23. Qe6+ {
[%emt 0:01:10]} Kg7 {[%emt 0:03:55]} 24. Qxc4 {[%emt 0:00:28]} Qa5 {[%emt 0:01:
34]} 25. Nc5 {[%emt 0:00:51]} Rhc8 {[%emt 0:00:35]} 26. Ne6+ {[%emt 0:00:21]}
Kh7 {[%emt 0:00:04]} 27. Qe2 {[%emt 0:00:27]} Qb5 {[%emt 0:04:44]} 1/2-1/2

[Event "FIN-ch Seniors 2019"]
[Site "Helsinki"]
[Date "2019.06.14"]
[Round "5.6"]
[White "Terasalo, Kari"]
[Black "Lyly, Seppo"]
[Result "1/2-1/2"]
[ECO "B50"]
[WhiteElo "1780"]
[BlackElo "1907"]
[Annotator "NA"]
[PlyCount "40"]
[EventDate "2019.06.10"]
[EventType "swiss"]
[EventCountry "FIN"]
[SourceTitle "playchess.com"]
[Source "ChessBase"]
[SourceQuality "1"]
[TimeControl "40/5400+30:1800+30"]

1. e4 {[%emt 1:30:30]} c5 {[%emt 1:30:30]} 2. Nf3 {[%emt 0:00:30]} d6 {[%emt 0:
00:30]} 3. c3 {[%emt 0:00:30]} Nf6 {[%emt 0:00:30]} 4. d3 {[%emt 0:00:30]} Nc6
{[%emt 0:00:30]} 5. Bg5 {[%emt 0:00:30]} e6 {[%emt 0:00:30]} 6. Nbd2 {[%emt 0:
00:30]} Be7 {[%emt 0:00:30]} 7. Be2 {[%emt 0:00:30]} O-O {[%emt 0:00:30]} 8.
O-O {[%emt 0:00:30]} Rb8 {[%emt 0:00:30]} 9. Re1 {[%emt 0:00:30]} b5 {[%emt 0:
00:30]} 10. Rb1 {[%emt 0:00:30]} a5 {[%emt 0:00:30]} 11. d4 {[%emt 0:00:30]}
cxd4 {[%emt 0:00:30]} 12. cxd4 {[%emt 0:00:30]} Qb6 {[%emt 0:00:30]} 13. Be3 {
[%emt 0:00:30]} d5 {[%emt 0:00:30]} 14. e5 {[%emt 0:00:30]} Ng4 {[%emt 0:00:30]
} 15. Bf4 {[%emt 0:00:30]} Bd7 {[%emt 0:00:30]} 16. h3 {[%emt 0:00:30]} Nh6 {
[%emt 0:00:30]} 17. Bxh6 {[%emt 0:00:30]} gxh6 {[%emt 0:00:30]} 18. Nf1 {
[%emt 0:00:30]} Kh8 {[%emt 0:00:30]} 19. Qd2 {[%emt 0:00:30]} Rg8 {[%emt 0:00:
30]} 20. Qxh6 {[%emt 0:00:30]} Rg6 {[%emt 0:00:30]} 1/2-1/2

[Event "FIN-ch Seniors 2019"]
[Site "Helsinki"]
[Date "2019.06.14"]
[Round "5.7"]
[White "Patola, Eero"]
[Black "Koskinen, Veikko"]
[Result "0-1"]
[ECO "B01"]
[WhiteElo "1853"]
[BlackElo "1866"]
[Annotator "NA"]
[PlyCount "82"]
[EventDate "2019.06.10"]
[EventType "swiss"]
[EventCountry "FIN"]
[SourceTitle "playchess.com"]
[Source "ChessBase"]
[SourceQuality "1"]
[TimeControl "40/5400+30:1800+30"]

1. e4 {[%emt 0:00:12]} d5 {[%emt 0:01:17]} 2. exd5 {[%emt 0:00:13]} Qxd5 {
[%emt 0:00:05]} 3. Qf3 {[%emt 0:00:18]} Nf6 {[%emt 0:07:02]} 4. Qxd5 {[%emt 0:
00:35]} Nxd5 {[%emt 0:00:10]} 5. a3 {[%emt 0:02:09]} Bf5 {[%emt 0:02:23]} 6. d3
{[%emt 0:00:56]} Nc6 {[%emt 0:04:12]} 7. Nf3 {[%emt 0:00:28]} e5 {[%emt 0:03:
16]} 8. Bd2 {[%emt 0:03:55]} a6 {[%emt 0:16:55]} 9. Nc3 {[%emt 0:03:23]} Nb6 {
[%emt 0:02:09]} 10. Be3 {[%emt 0:01:00]} Nd7 {[%emt 0:02:38]} 11. Be2 {[%emt 0:
02:26]} f6 {[%emt 0:04:06]} 12. h3 {[%emt 0:01:37]} Bc5 {[%emt 0:03:56]} 13.
Bxc5 {[%emt 0:07:02]} Nxc5 {[%emt 0:00:15]} 14. Nd5 {[%emt 0:01:22]} O-O-O {
[%emt 0:02:11]} 15. Nc3 {[%emt 0:02:16]} Nd4 {[%emt 0:10:36]} 16. Bd1 {[%emt 0:
02:30]} g5 {[%emt 0:03:12]} 17. b4 {[%emt 0:03:32]} Nce6 {[%emt 0:01:03]} 18.
Nxd4 {[%emt 0:01:35]} Nxd4 {[%emt 0:05:22]} 19. Ne2 {[%emt 0:04:33]} h5 {
[%emt 0:03:01]} 20. Nxd4 {[%emt 0:02:15]} Rxd4 {[%emt 0:00:24]} 21. Be2 {
[%emt 0:02:31]} Bg6 {[%emt 0:03:34]} 22. Rd1 {[%emt 0:01:23]} Rhd8 {[%emt 0:01:
50]} 23. O-O {[%emt 0:01:03]} R4d6 {[%emt 0:01:03]} 24. g3 {[%emt 0:01:52]} Rd4
{[%emt 0:04:06]} 25. Rb1 {[%emt 0:03:46]} h4 {[%emt 0:02:32]} 26. Kh2 {[%emt 0:
01:34]} e4 {[%emt 0:03:18]} 27. dxe4 {[%emt 0:04:11]} Bxe4 {[%emt 0:00:40]} 28.
Rbc1 {[%emt 0:04:38]} hxg3+ {[%emt 0:01:55]} 29. Kxg3 {[%emt 0:00:24]} Rd2 {
[%emt 0:00:34]} 30. Bd1 {[%emt 0:02:19]} f5 {[%emt 0:01:08]} 31. f3 {[%emt 0:
05:14]} Bc6 {[%emt 0:00:42]} 32. Rg1 {[%emt 0:02:03]} R8d4 {[%emt 0:02:25]} 33.
Rf1 {[%emt 0:03:49]} f4+ {[%emt 0:02:23]} 34. Kg4 {[%emt 0:00:16]} Rg2+ {
[%emt 0:00:22]} 35. Kf5 {[%emt 0:00:43]} Bd7+ {[%emt 0:00:47]} 36. Ke5 {
[%emt 0:00:28]} Rgd2 {[%emt 0:06:28]} 37. c4 {[%emt 0:00:51]} Rd6 {[%emt 0:00:
00]} 38. Bc2 {[%emt 0:06:27]} Re6+ {[%emt 0:00:00]} 39. Kf5 {[%emt 0:00:12]}
Ree2+ {[%emt 0:00:00]} 40. Kxg5 {[%emt 0:00:55]} Rxc2 {[%emt 0:00:00]} 41. Kxf4
{[%emt 0:30:37]} Bxh3 {[%emt 0:28:09]} 0-1

[Event "FIN-ch Seniors 2019"]
[Site "Helsinki"]
[Date "2019.06.14"]
[Round "5.8"]
[White "Gronroos, Matti"]
[Black "Kangas, Mauno"]
[Result "1-0"]
[ECO "B07"]
[WhiteElo "1931"]
[BlackElo "1831"]
[Annotator "NA"]
[PlyCount "71"]
[EventDate "2019.06.10"]
[EventType "swiss"]
[EventCountry "FIN"]
[SourceTitle "playchess.com"]
[Source "ChessBase"]
[SourceQuality "1"]
[TimeControl "40/5400+30:1800+30"]

1. e4 {[%emt 1:30:30]} d6 {[%emt 1:30:30]} 2. d4 {[%emt 0:00:30]} Nf6 {[%emt 0:
00:30]} 3. Nc3 {[%emt 0:00:30]} g6 {[%emt 0:00:30]} 4. Bf4 {[%emt 0:00:30]} Bg7
{[%emt 0:00:30]} 5. Qd2 {[%emt 0:00:30]} O-O {[%emt 0:00:30]} 6. O-O-O {
[%emt 0:00:30]} c6 {[%emt 0:00:30]} 7. f3 {[%emt 0:00:30]} Qa5 {[%emt 0:00:30]}
8. Kb1 {[%emt 0:00:30]} Be6 {[%emt 0:00:30]} 9. Nd5 {[%emt 0:00:30]} Qd8 {
[%emt 0:00:30]} 10. Nxf6+ {[%emt 0:00:30]} Bxf6 {[%emt 0:00:30]} 11. Bh6 {
[%emt 0:00:30]} Re8 {[%emt 0:00:30]} 12. h4 {[%emt 0:00:30]} b5 {[%emt 0:00:30]
} 13. h5 {[%emt 0:00:30]} a5 {[%emt 0:00:30]} 14. d5 {[%emt 0:00:30]} Bd7 {
[%emt 0:00:30]} 15. hxg6 {[%emt 0:00:30]} fxg6 {[%emt 0:00:30]} 16. Ne2 {
[%emt 0:00:30]} Na6 {[%emt 0:00:30]} 17. Nd4 {[%emt 0:00:30]} cxd5 {[%emt 0:00:
30]} 18. exd5 {[%emt 0:00:30]} Qb6 {[%emt 0:00:30]} 19. Be3 {[%emt 0:00:30]}
Qb7 {[%emt 0:00:30]} 20. Ne2 {[%emt 0:00:30]} Nc5 {[%emt 0:00:30]} 21. Bxc5 {
[%emt 0:00:30]} dxc5 {[%emt 0:00:30]} 22. Qh6 {[%emt 0:00:30]} Bg7 {[%emt 0:00:
30]} 23. Qxh7+ {[%emt 0:00:30]} Kf7 {[%emt 0:00:30]} 24. Nf4 {[%emt 0:00:30]}
Ra6 {[%emt 0:00:30]} 25. Qh2 {[%emt 0:00:30]} Rh8 {[%emt 0:00:30]} 26. Nh3 {
[%emt 0:00:30]} Kf8 {[%emt 0:00:30]} 27. Qg3 {[%emt 0:00:30]} Rd6 {[%emt 0:00:
30]} 28. Qf4+ {[%emt 0:00:30]} Bf6 {[%emt 0:00:30]} 29. Qd2 {[%emt 0:00:30]} c4
{[%emt 0:00:30]} 30. Be2 {[%emt 0:00:30]} Rh5 {[%emt 0:00:30]} 31. Nf4 {
[%emt 0:00:30]} Bg5 {[%emt 0:00:30]} 32. Rxh5 {[%emt 0:00:30]} gxh5 {[%emt 0:
00:30]} 33. Qd4 {[%emt 0:00:30]} e5 {[%emt 0:00:30]} 34. Qxe5 {[%emt 0:00:30]}
Bxf4 {[%emt 0:00:30]} 35. Qxf4+ {[%emt 0:00:30]} Ke7 {[%emt 0:00:30]} 36. Qe5+
{[%emt 0:00:30]} 1-0

[Event "FIN-ch Seniors 2019"]
[Site "Helsinki"]
[Date "2019.06.15"]
[Round "6.1"]
[White "Leukkunen, Raimo"]
[Black "Hurme, Harri"]
[Result "*"]
[ECO "A03"]
[WhiteElo "1876"]
[BlackElo "2122"]
[Annotator "NA"]
[PlyCount "84"]
[EventDate "2019.06.10"]
[EventType "swiss"]
[EventCountry "FIN"]
[SourceTitle "playchess.com"]
[Source "ChessBase"]
[SourceQuality "1"]
[TimeControl "40/5400+30:1800+30"]

1. f4 {[%emt 1:30:30]} d5 {[%emt 1:30:30]} 2. Nf3 {[%emt 0:00:00]} Nf6 {
[%emt 0:01:00]} 3. e3 {[%emt 0:00:46]} g6 {[%emt 0:00:13]} 4. Nc3 {[%emt 0:00:
35]} Bg7 {[%emt 0:00:25]} 5. b3 {[%emt 0:00:09]} O-O {[%emt 0:00:32]} 6. Bb2 {
[%emt 0:00:07] A03: Bird's Opening with 1...d5} c5 {[%emt 0:02:53]} 7. Ne2 {
[%emt 1:31:53]} (7. Na4 b6 8. Be2 Bb7 9. Ne5 Qd6 10. Bf3 Ne4 11. O-O Ng5 12. d4
Nxf3+ 13. Rxf3 cxd4 14. exd4 {0-1 (63) Schuster,P (2473)-Zhak,B (2651) ICCF
email 2012}) 7... e6 $146 {[%emt 0:04:27]} ({Predecessor:} 7... Nc6 8. Ng3 Nd7
9. Bxg7 Kxg7 10. Be2 e5 11. fxe5 Ndxe5 12. O-O b6 13. a3 Qc7 14. Nxe5 Qxe5 {
1/2-1/2 (36) Uphoff,J (1581)-Scheerer,J (1364) Heusenstamm 2018}) 8. h3 {
[%emt 0:06:08]} Nc6 {[%emt 0:03:19]} 9. d3 {[%emt 0:03:00]} b5 {[%emt 0:04:02]}
10. g4 {[%emt 0:05:31]} Bb7 {[%emt 0:04:52]} 11. Bg2 {[%emt 0:00:31] [#]} (11.
g5 $142 Nh5 12. d4) 11... d4 {[%emt 0:05:45]} (11... Nxg4 $1 $17 {[%mdl 512]}
12. Bxg7 (12. hxg4 Bxb2) 12... Nxe3 {[%mdl 64] Double Attack} 13. Bxf8 Kxf8)
12. e4 {[%emt 0:06:38]} Nd7 {[%emt 1:08:32]} 13. O-O {[%emt 0:02:37]} a5 {
[%emt 0:04:19]} 14. a3 {[%emt 0:05:09]} Qc7 {[%emt 0:04:06]} 15. Bc1 {[%emt 0:
01:31]} Nb6 {[%emt 0:03:51]} 16. Qe1 {[%emt 0:01:21]} c4 {[%emt 0:02:09]} 17.
e5 {[%emt 0:04:56]} Rfd8 {[%emt 0:04:18]} 18. Qf2 {[%emt 0:00:29]} Rd7 {
[%emt 0:47:20]} 19. Nfxd4 {[%emt 0:06:41]} Nxd4 $15 {[%emt 0:00:33]} 20. Nxd4 {
[%emt 0:50:58]} Bxg2 {[%emt 0:01:45]} 21. Kxg2 {[%emt 0:01:59]} Rad8 {[%emt 0:
00:40]} 22. Be3 {[%emt 0:00:36]} Nd5 {[%emt 0:00:24]} 23. Nf3 {[%emt 0:06:29]}
cxb3 {[%emt 0:01:42]} 24. cxb3 {[%emt 0:02:23]} Nxe3+ {[%emt 0:00:40]} 25. Qxe3
{[%emt 0:00:16]} Rxd3 {[%emt 0:00:05]} 26. Rac1 {[%emt 0:40:48]} Qb7 {[%emt 0:
05:45]} 27. Qc5 {[%emt 0:04:31]} Rxb3 {[%emt 0:01:34]} 28. Rc3 {[%emt 0:02:35]}
Bf8 {[%emt 0:02:33]} 29. Qe3 {[%emt 0:04:31]} Rxc3 {[%emt 0:00:15]} 30. Qxc3 {
[%emt 0:00:08]} b4 {[%emt 0:00:12]} 31. axb4 {[%emt 0:00:15]} axb4 {[%emt 0:00:
16]} 32. Qb3 {[%emt 0:24:18]} Qe4 {[%emt 0:01:39]} 33. Kg3 {[%emt 0:11:12]} Rd3
{[%emt 0:00:04]} 34. Qb2 {[%emt 0:12:43]} h6 {[%emt 0:01:17]} 35. h4 {[%emt 0:
02:14]} b3 {[%emt 0:00:54]} 36. Qf2 {[%emt 0:03:08]} Ba3 {[%emt 0:02:38]} 37.
Qa7 {[%emt 0:00:39]} b2 {[%emt 0:01:50]} 38. Qb8+ {[%emt 0:00:29]} Kg7 {
[%emt 0:00:03]} 39. g5 {[%emt 0:04:42]} b1=Q {[%emt 0:02:02]} 40. gxh6+ {
[%emt 0:00:41]} Kh7 {[%emt 0:00:05]} 41. Qxb1 {[%emt 0:02:20]} Rxf3+ {[%emt 0:
00:15]} 42. Kg2 {[%emt 0:00:24]} Qe2+ {[%emt 0:00:45]} *

[Event "FIN-ch Seniors 2019"]
[Site "Helsinki"]
[Date "2019.06.15"]
[Round "6.1"]
[White "Leukkunen, Raimo"]
[Black "Hurme, Harri"]
[Result "0-1"]
[ECO "A03"]
[WhiteElo "1876"]
[BlackElo "2122"]
[Annotator "ChessBase"]
[PlyCount "84"]
[EventDate "2019.06.10"]
[EventType "swiss"]
[EventCountry "FIN"]
[SourceTitle "playchess.com"]
[Source "ChessBase"]
[SourceQuality "1"]
[TimeControl "40/5400+30:1800+30"]

1. f4 {[%emt 0:00:00]} d5 {[%emt 0:00:00]} 2. Nf3 {[%emt 0:00:00]} Nf6 {
[%emt 0:01:00]} 3. e3 {[%emt 0:00:46]} g6 {[%emt 0:00:13]} 4. Nc3 {[%emt 0:00:
35]} Bg7 {[%emt 0:00:25]} 5. b3 {[%emt 0:00:09]} O-O {[%emt 0:00:32]} 6. Bb2 {
[%emt 0:00:07]} c5 {[%emt 0:02:53]} 7. Ne2 {[%emt 0:02:53]} e6 {[%emt 0:04:27]}
8. h3 {[%emt 0:06:08]} Nc6 {[%emt 0:03:19]} 9. d3 {[%emt 0:03:00]} b5 {[%emt 0:
04:02]} 10. g4 {[%emt 0:05:31]} Bb7 {[%emt 0:04:52]} 11. Bg2 {[%emt 0:00:31]}
d4 {[%emt 0:05:45]} 12. e4 {[%emt 0:06:38]} Nd7 {[%emt 0:05:29]} 13. O-O {
[%emt 0:02:37]} a5 {[%emt 0:04:19]} 14. a3 {[%emt 0:05:09]} Qc7 {[%emt 0:04:06]
} 15. Bc1 {[%emt 0:01:31]} Nb6 {[%emt 0:03:51]} 16. Qe1 {[%emt 0:01:21]} c4 {
[%emt 0:02:09]} 17. e5 {[%emt 0:04:56]} Rfd8 {[%emt 0:04:18]} 18. Qf2 {[%emt 0:
00:29]} Rd7 {[%emt 0:07:49]} 19. Nfxd4 {[%emt 0:06:41]} Nxd4 {[%emt 0:00:33]}
20. Nxd4 {[%emt 0:01:27]} Bxg2 {[%emt 0:01:45]} 21. Kxg2 {[%emt 0:01:59]} Rad8
{[%emt 0:00:40]} 22. Be3 {[%emt 0:00:36]} Nd5 {[%emt 0:00:24]} 23. Nf3 {
[%emt 0:06:29]} cxb3 {[%emt 0:01:42]} 24. cxb3 {[%emt 0:02:23]} Nxe3+ {[%emt 0:
00:40]} 25. Qxe3 {[%emt 0:00:16]} Rxd3 {[%emt 0:00:05]} 26. Rac1 {[%emt 0:07:
30]} Qb7 {[%emt 0:05:45]} 27. Qc5 {[%emt 0:04:31]} Rxb3 {[%emt 0:01:34]} 28.
Rc3 {[%emt 0:02:35]} Bf8 {[%emt 0:02:33]} 29. Qe3 {[%emt 0:04:31]} Rxc3 {
[%emt 0:00:15]} 30. Qxc3 {[%emt 0:00:08]} b4 {[%emt 0:00:12]} 31. axb4 {
[%emt 0:00:15]} axb4 {[%emt 0:00:16]} 32. Qb3 {[%emt 0:01:23]} Qe4 {[%emt 0:01:
39]} 33. Kg3 {[%emt 0:11:12]} Rd3 {[%emt 0:00:04]} 34. Qb2 {[%emt 0:01:37]} h6
{[%emt 0:01:17]} 35. h4 {[%emt 0:02:14]} b3 {[%emt 0:00:54]} 36. Qf2 {[%emt 0:
03:08]} Ba3 {[%emt 0:02:38]} 37. Qa7 {[%emt 0:00:39]} b2 {[%emt 0:01:50]} 38.
Qb8+ {[%emt 0:00:29]} Kg7 {[%emt 0:00:03]} 39. g5 {[%emt 0:04:42]} b1=Q {
[%emt 0:02:02]} 40. gxh6+ {[%emt 0:00:41]} Kh7 {[%emt 0:00:05]} 41. Qxb1 {
[%emt 0:02:20]} Rxf3+ {[%emt 0:00:15]} 42. Kg2 {[%emt 0:00:24]} Qe2+ {[%emt 0:
54:20] Kg3 Qe4+} 0-1